[Event "Live Chess"]
[Site "Chess.com"]
[Date "2023.05.21"]
[Round "-"]
[White "KeithArkell"]
[Black "Doge_Dandolo"]
[Result "1-0"]
[WhiteElo "2560"]
[BlackElo "1907"]
[TimeControl "300"]
[EndTime "22:36:27 PDT"]
[Termination "KeithArkell won by resignation"]

1. d4 {[%clk 0:04:46.6]} 1... d5 {[%clk 0:04:56.8]} 2. Nf3 {[%clk 0:04:45.6]}
2... Nf6 {[%clk 0:04:55.2]} 3. c4 {[%clk 0:04:44.9]} 3... c6 {[%clk 0:04:53.9]}
4. Qc2 {[%clk 0:04:41.9]} 4... a6 {[%clk 0:04:51.2]} 5. Bg5 {[%clk 0:04:38.9]}
5... Ne4 {[%clk 0:04:47.8]} 6. Bf4 {[%clk 0:04:37]} 6... Bf5 {[%clk 0:04:40.3]}
7. Qb3 {[%clk 0:04:35.3]} 7... Ra7 {[%clk 0:04:32.7]} 8. cxd5 {[%clk 0:04:33]}
8... cxd5 {[%clk 0:04:30]} 9. Bxb8 {[%clk 0:04:31.8]} 9... Qxb8 {[%clk
0:04:26.6]} 10. Qxd5 {[%clk 0:04:29.2]} 10... e6 {[%clk 0:04:24.5]} 11. Qb3
{[%clk 0:04:28.1]} 11... b5 {[%clk 0:04:09.9]} 12. Nc3 {[%clk 0:04:26.3]} 12...
Bd6 {[%clk 0:03:56.7]} 13. Nxe4 {[%clk 0:04:16.6]} 13... Bxe4 {[%clk 0:03:54.1]}
14. e3 {[%clk 0:04:15.3]} 14... O-O {[%clk 0:03:49.9]} 15. Bd3 {[%clk
0:04:14.4]} 15... Bxf3 {[%clk 0:03:44.3]} 16. gxf3 {[%clk 0:04:12.7]} 16... Rc8
{[%clk 0:03:41.6]} 17. f4 {[%clk 0:04:10.6]} 17... Qa8 {[%clk 0:03:31.1]} 18.
O-O {[%clk 0:04:08.8]} 18... Rac7 {[%clk 0:03:23.3]} 19. a4 {[%clk 0:04:05.9]}
19... b4 {[%clk 0:03:10.7]} 20. Qd1 {[%clk 0:04:04.4]} 20... g6 {[%clk
0:03:03.2]} 21. Be2 {[%clk 0:04:03.1]} 21... Rc2 {[%clk 0:02:57.5]} 22. Bf3
{[%clk 0:03:59.1]} 22... Qb8 {[%clk 0:02:53]} 23. b3 {[%clk 0:03:56.7]} 23... a5
{[%clk 0:02:32.9]} 24. Rb1 {[%clk 0:03:52.5]} 24... Qc7 {[%clk 0:02:21.8]} 25.
Be4 {[%clk 0:03:46.9]} 25... Rc3 {[%clk 0:02:16.5]} 26. Qe2 {[%clk 0:03:45.1]}
26... Qd8 {[%clk 0:02:11.1]} 27. Qa6 {[%clk 0:03:20.8]} 27... Qh4 {[%clk
0:01:57.6]} 28. Qxd6 {[%clk 0:03:16.2]} 1-0

[Event "Live Chess"]
[Site "Chess.com"]
[Date "2023.05.21"]
[Round "-"]
[White "Jo1ts"]
[Black "Ocelot32"]
[Result "0-1"]
[WhiteElo "825"]
[BlackElo "1345"]
[TimeControl "300"]
[EndTime "22:36:32 PDT"]
[Termination "Ocelot32 won by resignation"]

1. d4 {[%clk 0:04:58.2]} 1... Nf6 {[%clk 0:04:57.1]} 2. Bf4 {[%clk 0:04:57.4]}
2... c5 {[%clk 0:04:53.4]} 3. Nf3 {[%clk 0:04:56.9]} 3... Qb6 {[%clk 0:04:52.2]}
4. b3 {[%clk 0:04:51.8]} 4... cxd4 {[%clk 0:04:49.9]} 5. Qxd4 {[%clk 0:04:46.2]}
5... Qc6 {[%clk 0:04:35.7]} 6. c4 {[%clk 0:04:39.3]} 6... e6 {[%clk 0:04:31.3]}
7. Ne5 {[%clk 0:04:34.4]} 7... Bb4+ {[%clk 0:04:22.8]} 8. Bd2 {[%clk 0:04:28.2]}
8... Bxd2+ {[%clk 0:04:17.9]} 9. Nxd2 {[%clk 0:04:26.6]} 9... Qc7 {[%clk
0:04:13.8]} 10. e3 {[%clk 0:04:08.9]} 10... d6 {[%clk 0:04:12.4]} 11. Ng4 {[%clk
0:04:02.3]} 11... e5 {[%clk 0:04:02.1]} 0-1

[Event "Live Chess"]
[Site "Chess.com"]
[Date "2023.05.21"]
[Round "-"]
[White "tpm07"]
[Black "chessfiction"]
[Result "0-1"]
[WhiteElo "1927"]
[BlackElo "2345"]
[TimeControl "300"]
[EndTime "22:37:01 PDT"]
[Termination "chessfiction won on time"]

1. d4 {[%clk 0:04:56.4]} 1... d5 {[%clk 0:04:58.8]} 2. c4 {[%clk 0:04:54.6]}
2... Nc6 {[%clk 0:04:58.2]} 3. Nf3 {[%clk 0:04:52.7]} 3... Bg4 {[%clk
0:04:55.8]} 4. cxd5 {[%clk 0:04:50.5]} 4... Qxd5 {[%clk 0:04:51.5]} 5. Nc3
{[%clk 0:04:45]} 5... Qh5 {[%clk 0:04:50.2]} 6. e3 {[%clk 0:04:41.5]} 6... O-O-O
{[%clk 0:04:48.4]} 7. Be2 {[%clk 0:04:39.4]} 7... e5 {[%clk 0:04:47.5]} 8. d5
{[%clk 0:04:35.9]} 8... e4 {[%clk 0:04:44.6]} 9. Nd2 {[%clk 0:04:25.7]} 9...
Bxe2 {[%clk 0:04:37.8]} 10. Qxe2 {[%clk 0:04:23.6]} 10... Qxe2+ {[%clk
0:04:36.5]} 11. Kxe2 {[%clk 0:04:23.1]} 11... Nb4 {[%clk 0:04:36.4]} 12. Ndxe4
{[%clk 0:04:12.9]} 12... f5 {[%clk 0:04:34.3]} 13. Ng5 {[%clk 0:04:10.8]} 13...
Nh6 {[%clk 0:04:32.5]} 14. Ne6 {[%clk 0:04:01.3]} 14... Re8 {[%clk 0:04:28.5]}
15. Nxf8 {[%clk 0:03:33]} 15... Rhxf8 {[%clk 0:04:28.4]} 16. a3 {[%clk
0:03:27.4]} 16... Nc2 {[%clk 0:04:26.4]} 17. Rb1 {[%clk 0:03:26.4]} 17... Nd4+
{[%clk 0:04:23]} 18. Kd3 {[%clk 0:03:25.1]} 18... Nb3 {[%clk 0:04:22.5]} 19. Kc2
{[%clk 0:03:23.4]} 19... Nxc1 {[%clk 0:04:16.8]} 20. Rbxc1 {[%clk 0:03:19]}
20... Ng4 {[%clk 0:04:16.7]} 21. Rcf1 {[%clk 0:03:07.7]} 21... f4 {[%clk
0:04:08.5]} 22. e4 {[%clk 0:03:04.4]} 22... f3 {[%clk 0:04:06.9]} 23. gxf3
{[%clk 0:03:00.6]} 23... Rxf3 {[%clk 0:04:05.1]} 24. h3 {[%clk 0:02:52.4]} 24...
Nxf2 {[%clk 0:04:00.6]} 25. Rh2 {[%clk 0:02:50.5]} 25... Ref8 {[%clk 0:03:58.3]}
26. Rg1 {[%clk 0:02:25.3]} 26... g6 {[%clk 0:03:51.6]} 27. h4 {[%clk 0:02:24]}
27... a6 {[%clk 0:03:43.4]} 28. h5 {[%clk 0:02:22.9]} 28... gxh5 {[%clk
0:03:35.1]} 29. Rxh5 {[%clk 0:02:21.2]} 29... R8f7 {[%clk 0:03:34.4]} 30. e5
{[%clk 0:02:10.1]} 30... b5 {[%clk 0:03:11.1]} 31. e6 {[%clk 0:02:07.5]} 31...
Re7 {[%clk 0:03:06.2]} 32. Rg8+ {[%clk 0:01:57.3]} 32... Kb7 {[%clk 0:03:03.3]}
33. Rh8 {[%clk 0:01:53.7]} 33... Rg7 {[%clk 0:02:31]} 34. R5xh7 {[%clk
0:01:45.8]} 34... Rg2 {[%clk 0:02:29.8]} 35. Kb1 {[%clk 0:01:35.2]} 35... Nd3
{[%clk 0:02:24.3]} 36. Rh2 {[%clk 0:01:31]} 36... Rf1+ {[%clk 0:02:17.1]} 37.
Ka2 {[%clk 0:01:29.6]} 37... Nc1+ {[%clk 0:01:44.4]} 38. Kb1 {[%clk 0:01:03.6]}
38... Nd3+ {[%clk 0:00:46.9]} 39. Ka2 {[%clk 0:00:56]} 39... Rgg1 {[%clk
0:00:46.4]} 40. Kb3 {[%clk 0:00:41]} 40... Nc5+ {[%clk 0:00:33.6]} 41. Kc2
{[%clk 0:00:37.7]} 41... Rc1+ {[%clk 0:00:30.1]} 42. Kd2 {[%clk 0:00:34.3]}
42... Nb3+ {[%clk 0:00:29.5]} 43. Ke3 {[%clk 0:00:28.7]} 43... Rce1+ {[%clk
0:00:25.1]} 44. Re2 {[%clk 0:00:20]} 44... Rxe2+ {[%clk 0:00:22.3]} 45. Kxe2
{[%clk 0:00:18]} 45... Rg7 {[%clk 0:00:22.2]} 46. Rf8 {[%clk 0:00:15]} 46...
Nd4+ {[%clk 0:00:20.9]} 47. Kd3 {[%clk 0:00:13.4]} 47... Nb3 {[%clk 0:00:19.1]}
48. Ke4 {[%clk 0:00:12.3]} 48... Nc5+ {[%clk 0:00:17.3]} 49. Kf5 {[%clk
0:00:11.2]} 49... Rg2 {[%clk 0:00:15.8]} 50. e7 {[%clk 0:00:09.8]} 50... Rf2+
{[%clk 0:00:15.3]} 51. Kg6 {[%clk 0:00:08.1]} 51... Rg2+ {[%clk 0:00:13.3]} 52.
Kf7 {[%clk 0:00:06.9]} 52... Rf2+ {[%clk 0:00:10.3]} 53. Ke8 {[%clk 0:00:06.2]}
53... Rxb2 {[%clk 0:00:08.4]} 54. Kd8 {[%clk 0:00:04.2]} 54... Kb6 {[%clk
0:00:05.2]} 55. e8=Q {[%clk 0:00:03.2]} 55... Nb7+ {[%clk 0:00:05.1]} 56. Ke7
{[%clk 0:00:01.3]} 56... Re2+ {[%clk 0:00:03.6]} 57. Kf7 {[%clk 0:00:00.9]}
57... Rxe8 {[%clk 0:00:02.8]} 58. Kxe8 {[%clk 0:00:00.8]} 58... Nd6+ {[%clk
0:00:02.6]} 0-1

[Event "Live Chess"]
[Site "Chess.com"]
[Date "2023.05.21"]
[Round "-"]
[White "KeithArkell"]
[Black "Conradical12"]
[Result "1-0"]
[WhiteElo "2560"]
[BlackElo "1630"]
[TimeControl "300"]
[EndTime "22:37:48 PDT"]
[Termination "KeithArkell won by resignation"]

1. d4 {[%clk 0:04:36.5]} 1... d5 {[%clk 0:04:57.7]} 2. Nf3 {[%clk 0:04:35.6]}
2... Nf6 {[%clk 0:04:56]} 3. c4 {[%clk 0:04:34.8]} 3... c6 {[%clk 0:04:54.6]} 4.
Nc3 {[%clk 0:04:33.8]} 4... Bf5 {[%clk 0:04:53.4]} 5. cxd5 {[%clk 0:04:30]} 5...
cxd5 {[%clk 0:04:49.1]} 6. Qb3 {[%clk 0:04:29.2]} 6... Qc7 {[%clk 0:04:46.7]} 7.
Bf4 {[%clk 0:04:26.3]} 7... Qc6 {[%clk 0:04:40.9]} 8. e3 {[%clk 0:04:24.5]} 8...
Ne4 {[%clk 0:04:38.5]} 9. Bb5 {[%clk 0:04:22.4]} 9... Nd7 {[%clk 0:04:33.6]} 10.
Bxc6 {[%clk 0:04:19.7]} 10... bxc6 {[%clk 0:04:33.5]} 11. Qb7 {[%clk 0:04:16.7]}
11... Rd8 {[%clk 0:04:32.9]} 12. Qxc6 {[%clk 0:04:13.7]} 1-0

[Event "Live Chess"]
[Site "Chess.com"]
[Date "2023.05.21"]
[Round "-"]
[White "BillythekidFellowes"]
[Black "mirandaasilva"]
[Result "1-0"]
[WhiteElo "2032"]
[BlackElo "1668"]
[TimeControl "300"]
[EndTime "22:38:48 PDT"]
[Termination "BillythekidFellowes won on time"]

1. e4 {[%clk 0:04:58.6]} 1... c5 {[%clk 0:04:54.1]} 2. Nf3 {[%clk 0:04:57.6]}
2... d6 {[%clk 0:04:50.7]} 3. d4 {[%clk 0:04:55.4]} 3... cxd4 {[%clk 0:04:50.6]}
4. Qxd4 {[%clk 0:04:55.2]} 4... Nf6 {[%clk 0:04:45.9]} 5. Bg5 {[%clk 0:04:52.6]}
5... Nbd7 {[%clk 0:04:43.3]} 6. Nc3 {[%clk 0:04:50.5]} 6... h6 {[%clk
0:04:32.7]} 7. Bh4 {[%clk 0:04:48.6]} 7... g5 {[%clk 0:04:25]} 8. Bg3 {[%clk
0:04:46.2]} 8... Bg7 {[%clk 0:04:23.5]} 9. O-O-O {[%clk 0:04:42.4]} 9... O-O
{[%clk 0:04:21]} 10. Bc4 {[%clk 0:04:38.1]} 10... a6 {[%clk 0:03:57.9]} 11. Rhe1
{[%clk 0:04:34.8]} 11... b5 {[%clk 0:03:55.3]} 12. Bb3 {[%clk 0:04:31.2]} 12...
Bb7 {[%clk 0:03:51.2]} 13. Qe3 {[%clk 0:04:15.9]} 13... Nc5 {[%clk 0:03:41.9]}
14. e5 {[%clk 0:04:08.8]} 14... Ng4 {[%clk 0:03:20.9]} 15. Qe2 {[%clk
0:04:04.3]} 15... Nxb3+ {[%clk 0:02:20]} 16. axb3 {[%clk 0:04:00.5]} 16... Rc8
{[%clk 0:02:17.8]} 17. exd6 {[%clk 0:03:57.3]} 17... exd6 {[%clk 0:01:59.9]} 18.
Rxd6 {[%clk 0:03:54.6]} 18... Qa5 {[%clk 0:01:57.9]} 19. Ne5 {[%clk 0:03:33.5]}
19... Nxe5 {[%clk 0:01:49.7]} 20. Bxe5 {[%clk 0:03:32.4]} 20... Bxe5 {[%clk
0:01:43.3]} 21. Qxe5 {[%clk 0:03:32.3]} 21... Rfe8 {[%clk 0:01:39.3]} 22. Qxe8+
{[%clk 0:03:27.8]} 22... Rxe8 {[%clk 0:01:39.2]} 23. Rxe8+ {[%clk 0:03:26.7]}
23... Kg7 {[%clk 0:01:39.1]} 24. Re7 {[%clk 0:03:22.6]} 24... Qb4 {[%clk
0:01:16.2]} 25. Rdd7 {[%clk 0:03:18.8]} 25... Qf4+ {[%clk 0:01:13.9]} 26. Kb1
{[%clk 0:03:16.1]} 26... Bxg2 {[%clk 0:01:11.8]} 27. Nd1 {[%clk 0:02:51.2]}
27... h5 {[%clk 0:01:04.9]} 28. Ne3 {[%clk 0:02:49.9]} 28... Bc6 {[%clk
0:00:57.4]} 29. Rc7 {[%clk 0:02:46.1]} 29... Be4 {[%clk 0:00:53.1]} 30. Ra7
{[%clk 0:02:38.1]} 30... Bg6 {[%clk 0:00:35.5]} 31. Rxa6 {[%clk 0:02:32.3]}
31... Qxf2 {[%clk 0:00:34.2]} 32. Raa7 {[%clk 0:02:27.3]} 32... Qxh2 {[%clk
0:00:31.6]} 33. Rab7 {[%clk 0:02:14.8]} 33... g4 {[%clk 0:00:30.2]} 34. Rxb5
{[%clk 0:02:13.7]} 34... g3 {[%clk 0:00:28.8]} 35. Rg5 {[%clk 0:02:08.6]} 35...
Kf6 {[%clk 0:00:18.9]} 36. Ree5 {[%clk 0:02:06.7]} 36... Qh1+ {[%clk 0:00:15.8]}
37. Ka2 {[%clk 0:02:04.8]} 37... Qa8+ {[%clk 0:00:13.4]} 38. Ra5 {[%clk
0:02:03.8]} 38... Qf3 {[%clk 0:00:11.8]} 39. Rae5 {[%clk 0:01:53.6]} 39... Qf4
{[%clk 0:00:10.9]} 40. Nd5+ {[%clk 0:01:51]} 40... Kg7 {[%clk 0:00:09.1]} 41.
Nxf4 {[%clk 0:01:50.9]} 41... f6 {[%clk 0:00:05.3]} 42. Rxg6+ {[%clk 0:01:49.9]}
42... Kf7 {[%clk 0:00:03.7]} 43. Rf5 {[%clk 0:01:49.8]} 43... g2 {[%clk
0:00:01.7]} 44. Rfxf6+ {[%clk 0:01:49.7]} 44... Ke7 {[%clk 0:00:01]} 45. Nd5+
{[%clk 0:01:49.6]} 45... Kd7 {[%clk 0:00:00.9]} 46. Rd6+ {[%clk 0:01:49.3]} 1-0

[Event "Live Chess"]
[Site "Chess.com"]
[Date "2023.05.21"]
[Round "-"]
[White "MaximKhimchenko"]
[Black "OleksiyJr1"]
[Result "1-0"]
[WhiteElo "1366"]
[BlackElo "964"]
[TimeControl "300"]
[EndTime "22:39:14 PDT"]
[Termination "MaximKhimchenko won by checkmate"]

1. e4 {[%clk 0:04:57.6]} 1... c5 {[%clk 0:04:51.1]} 2. Nf3 {[%clk 0:04:57.5]}
2... Nc6 {[%clk 0:04:49.9]} 3. d4 {[%clk 0:04:57.4]} 3... cxd4 {[%clk
0:04:48.7]} 4. Nxd4 {[%clk 0:04:57.3]} 4... Nf6 {[%clk 0:04:46.2]} 5. Nc3 {[%clk
0:04:55.8]} 5... e5 {[%clk 0:04:43.9]} 6. Ndb5 {[%clk 0:04:53.7]} 6... a6 {[%clk
0:04:41.6]} 7. Nd6+ {[%clk 0:04:52.8]} 7... Bxd6 {[%clk 0:04:37.7]} 8. Qxd6
{[%clk 0:04:52.7]} 8... Qa5 {[%clk 0:04:32.8]} 9. Bd2 {[%clk 0:04:50.5]} 9...
Qb4 {[%clk 0:04:16.5]} 10. Qc7 {[%clk 0:04:32.5]} 10... Qxb2 {[%clk 0:04:06.3]}
11. Rb1 {[%clk 0:04:24.8]} 11... Qxc2 {[%clk 0:04:03.3]} 12. Rc1 {[%clk
0:04:23.8]} 12... Qb2 {[%clk 0:03:49.5]} 13. Na4 {[%clk 0:04:16.6]} 13... Qxa2
{[%clk 0:03:36.3]} 14. Nb6 {[%clk 0:04:15.7]} 14... Nxe4 {[%clk 0:03:21.3]} 15.
Rd1 {[%clk 0:04:08.4]} 15... O-O {[%clk 0:03:11.9]} 16. Bc4 {[%clk 0:04:00.2]}
16... Nxd2 {[%clk 0:03:10.1]} 17. Bxa2 {[%clk 0:03:57.3]} 17... Ne4 {[%clk
0:03:05.3]} 18. Nxa8 {[%clk 0:03:55]} 18... Nd4 {[%clk 0:03:02]} 19. Nb6 {[%clk
0:03:53]} 19... d5 {[%clk 0:02:58.3]} 20. Nxc8 {[%clk 0:03:51.6]} 20... Nc2+
{[%clk 0:02:54.9]} 21. Qxc2 {[%clk 0:03:48.7]} 21... d4 {[%clk 0:02:54]} 22.
Ne7+ {[%clk 0:03:46]} 22... Kh8 {[%clk 0:02:52.8]} 23. Bxf7 {[%clk 0:03:45.9]}
23... Rxf7 {[%clk 0:02:51.2]} 24. Qc8+ {[%clk 0:03:45]} 24... Rf8 {[%clk
0:02:51]} 25. Qxf8# {[%clk 0:03:44.9]} 1-0

[Event "Live Chess"]
[Site "Chess.com"]
[Date "2023.05.21"]
[Round "-"]
[White "Ocelot32"]
[Black "Tushinskiy"]
[Result "0-1"]
[WhiteElo "1345"]
[BlackElo "2205"]
[TimeControl "300"]
[EndTime "22:39:33 PDT"]
[Termination "Tushinskiy won by resignation"]

1. e4 {[%clk 0:04:57.2]} 1... e5 {[%clk 0:04:54.9]} 2. Nf3 {[%clk 0:04:54.5]}
2... d6 {[%clk 0:04:54.8]} 3. d4 {[%clk 0:04:52.6]} 3... Bg4 {[%clk 0:04:54.7]}
4. dxe5 {[%clk 0:04:50.6]} 4... Nd7 {[%clk 0:04:54.6]} 5. exd6 {[%clk
0:04:47.8]} 5... Bxd6 {[%clk 0:04:53.8]} 6. Be2 {[%clk 0:04:46.6]} 6... Qe7
{[%clk 0:04:53]} 7. O-O {[%clk 0:04:44.6]} 7... Ngf6 {[%clk 0:04:52.3]} 8. Bg5
{[%clk 0:04:41.1]} 8... O-O-O {[%clk 0:04:51.1]} 9. Nc3 {[%clk 0:04:38.9]} 9...
Bxf3 {[%clk 0:04:48.9]} 10. Bxf3 {[%clk 0:04:37.5]} 10... Qe5 {[%clk 0:04:46.9]}
11. g3 {[%clk 0:04:15.3]} 11... Qxg5 {[%clk 0:04:44.2]} 12. Qd4 {[%clk
0:04:13.3]} 12... Bc5 {[%clk 0:04:38.6]} 13. Qa4 {[%clk 0:04:08.4]} 13... h5
{[%clk 0:04:35.4]} 14. Nb5 {[%clk 0:03:46.6]} 14... Kb8 {[%clk 0:04:32.2]} 15.
Qb3 {[%clk 0:03:34.5]} 15... h4 {[%clk 0:04:26.1]} 16. Nd4 {[%clk 0:03:30.1]}
16... Bxd4 {[%clk 0:04:21.5]} 17. e5 {[%clk 0:03:28.8]} 17... Nc5 {[%clk
0:04:16.3]} 18. Qb4 {[%clk 0:03:23.7]} 18... Qxe5 {[%clk 0:04:13.1]} 19. c3
{[%clk 0:03:18.6]} 19... Bxf2+ {[%clk 0:04:07.1]} 20. Rxf2 {[%clk 0:03:16.7]}
20... hxg3 {[%clk 0:04:06.2]} 21. hxg3 {[%clk 0:03:14.5]} 21... Qxg3+ {[%clk
0:04:03.2]} 22. Rg2 {[%clk 0:03:13.9]} 22... Qxf3 {[%clk 0:04:01.1]} 0-1

[Event "Live Chess"]
[Site "Chess.com"]
[Date "2023.05.21"]
[Round "-"]
[White "Biranidun"]
[Black "raminguy"]
[Result "1-0"]
[WhiteElo "2550"]
[BlackElo "1944"]
[TimeControl "300"]
[EndTime "22:39:35 PDT"]
[Termination "Biranidun won by resignation"]

1. e4 {[%clk 0:04:57.7]} 1... e5 {[%clk 0:04:55.6]} 2. Nf3 {[%clk 0:04:56.8]}
2... Nc6 {[%clk 0:04:54.8]} 3. Bb5 {[%clk 0:04:52.9]} 3... Nf6 {[%clk
0:04:52.8]} 4. O-O {[%clk 0:04:51.8]} 4... Nxe4 {[%clk 0:04:51.9]} 5. d4 {[%clk
0:04:51.2]} 5... Be7 {[%clk 0:04:50.6]} 6. Re1 {[%clk 0:04:40.8]} 6... Nd6
{[%clk 0:04:47.7]} 7. Bxc6 {[%clk 0:04:39.4]} 7... dxc6 {[%clk 0:04:47.6]} 8.
dxe5 {[%clk 0:04:38.2]} 8... Nf5 {[%clk 0:04:47]} 9. Qxd8+ {[%clk 0:04:37.1]}
9... Bxd8 {[%clk 0:04:46.9]} 10. Bg5 {[%clk 0:04:32.4]} 10... O-O {[%clk
0:04:43.6]} 11. Bxd8 {[%clk 0:04:30.8]} 11... Rxd8 {[%clk 0:04:42.7]} 12. Nc3
{[%clk 0:04:29.3]} 12... Be6 {[%clk 0:04:38.8]} 13. Rad1 {[%clk 0:04:28.2]}
13... Kf8 {[%clk 0:04:35.4]} 14. a3 {[%clk 0:04:16]} 14... h6 {[%clk 0:04:33.4]}
15. g4 {[%clk 0:04:09.8]} 15... Ne7 {[%clk 0:04:31.9]} 16. h3 {[%clk 0:04:09.2]}
16... Ng6 {[%clk 0:04:30.1]} 17. Kg2 {[%clk 0:04:07.6]} 17... Ke7 {[%clk
0:04:14.3]} 18. Kg3 {[%clk 0:04:06.3]} 18... Rac8 {[%clk 0:04:03.4]} 19. Nd4
{[%clk 0:04:03.1]} 19... a6 {[%clk 0:03:49.7]} 20. f4 {[%clk 0:04:00.9]} 20...
c5 {[%clk 0:03:04.2]} 21. Nf5+ {[%clk 0:03:59.6]} 21... Kf8 {[%clk 0:02:53.5]}
22. Ne4 {[%clk 0:03:53.6]} 22... b6 {[%clk 0:02:44.8]} 23. Ne3 {[%clk
0:03:52.7]} 23... Bd7 {[%clk 0:02:15.2]} 24. Nd5 {[%clk 0:03:37.2]} 24... Bc6
{[%clk 0:02:09.8]} 25. c4 {[%clk 0:03:36.5]} 25... Ne7 {[%clk 0:02:03.8]} 26.
Nec3 {[%clk 0:03:33.8]} 26... b5 {[%clk 0:02:00.5]} 27. b3 {[%clk 0:03:06.9]}
27... a5 {[%clk 0:01:58.4]} 28. Nxe7 {[%clk 0:03:04.5]} 28... Kxe7 {[%clk
0:01:56.9]} 29. cxb5 {[%clk 0:03:03.5]} 29... Bb7 {[%clk 0:01:55.2]} 30. Na4
{[%clk 0:02:49.9]} 30... Bd5 {[%clk 0:01:25.7]} 31. Nxc5 {[%clk 0:02:47.6]}
31... c6 {[%clk 0:01:23.1]} 32. b6 {[%clk 0:02:41.6]} 32... Rb8 {[%clk
0:01:17.9]} 33. b7 {[%clk 0:02:40.4]} 33... Rd7 {[%clk 0:01:12.8]} 34. Nxd7
{[%clk 0:02:39.3]} 34... Kxd7 {[%clk 0:01:12.7]} 35. b4 {[%clk 0:02:36]} 35...
axb4 {[%clk 0:01:11.2]} 36. axb4 {[%clk 0:02:35.9]} 36... Rxb7 {[%clk
0:01:10.3]} 37. Rd4 {[%clk 0:02:35.6]} 37... Rb5 {[%clk 0:01:09.2]} 38. Ra1
{[%clk 0:02:32.5]} 38... Rb7 {[%clk 0:01:07.3]} 39. f5 {[%clk 0:02:31.2]} 39...
Ke7 {[%clk 0:01:06]} 40. Kf4 {[%clk 0:02:30.5]} 40... g6 {[%clk 0:01:04.5]} 41.
h4 {[%clk 0:02:27.8]} 41... Rc7 {[%clk 0:00:57.8]} 42. Ra5 {[%clk 0:02:19.7]}
42... Rb7 {[%clk 0:00:55.5]} 43. Ra8 {[%clk 0:02:09.7]} 43... Rc7 {[%clk
0:00:51.1]} 44. Rh8 {[%clk 0:01:54.4]} 44... h5 {[%clk 0:00:46.8]} 45. fxg6
{[%clk 0:01:46.6]} 45... fxg6 {[%clk 0:00:35.6]} 46. Rxd5 {[%clk 0:01:37.1]} 1-0

[Event "Live Chess"]
[Site "Chess.com"]
[Date "2023.05.21"]
[Round "-"]
[White "matt1979"]
[Black "Shepherds_Pie"]
[Result "0-1"]
[WhiteElo "1502"]
[BlackElo "1921"]
[TimeControl "300"]
[EndTime "22:39:37 PDT"]
[Termination "Shepherds_Pie won by resignation"]

1. f4 {[%clk 0:04:58]} 1... e5 {[%clk 0:04:58.1]} 2. fxe5 {[%clk 0:04:56.7]}
2... d6 {[%clk 0:04:57.1]} 3. exd6 {[%clk 0:04:55.7]} 3... Bxd6 {[%clk 0:04:56]}
4. Nf3 {[%clk 0:04:54.9]} 4... Bg4 {[%clk 0:04:53.9]} 5. e3 {[%clk 0:04:50.7]}
5... Nc6 {[%clk 0:04:44.7]} 6. Be2 {[%clk 0:04:45.7]} 6... Qd7 {[%clk
0:04:40.9]} 7. O-O {[%clk 0:04:43.6]} 7... O-O-O {[%clk 0:04:35]} 8. b3 {[%clk
0:04:32.6]} 8... Kb8 {[%clk 0:04:31.6]} 9. Bb2 {[%clk 0:04:30.8]} 9... f6 {[%clk
0:04:30.4]} 10. c4 {[%clk 0:04:14.6]} 10... Nge7 {[%clk 0:04:17.2]} 11. Nc3
{[%clk 0:04:11.2]} 11... Bxf3 {[%clk 0:04:00.4]} 12. Bxf3 {[%clk 0:04:08]} 12...
Ne5 {[%clk 0:03:58.8]} 13. Be2 {[%clk 0:04:01.2]} 13... Bb4 {[%clk 0:03:47]} 14.
a3 {[%clk 0:03:57.3]} 14... Bxc3 {[%clk 0:03:41]} 15. Bxc3 {[%clk 0:03:55.7]}
15... Nd3 {[%clk 0:03:39.9]} 16. Bxd3 {[%clk 0:03:52.7]} 16... Qxd3 {[%clk
0:03:37.2]} 17. Qf3 {[%clk 0:03:41.2]} 17... Nc6 {[%clk 0:03:31.8]} 18. e4
{[%clk 0:03:22.7]} 18... Rhe8 {[%clk 0:03:26.6]} 19. Qxd3 {[%clk 0:03:17.8]}
19... Rxd3 {[%clk 0:03:24.8]} 20. Rae1 {[%clk 0:03:10]} 20... b6 {[%clk
0:03:19.9]} 21. b4 {[%clk 0:03:00.7]} 21... Ne5 {[%clk 0:03:12.1]} 22. c5 {[%clk
0:02:51]} 22... Nc4 {[%clk 0:03:00.1]} 23. cxb6 {[%clk 0:02:42.9]} 23... axb6
{[%clk 0:02:58.2]} 24. a4 {[%clk 0:02:33.4]} 24... Nxd2 {[%clk 0:02:44.9]} 25.
Bxd2 {[%clk 0:02:26]} 25... Rxd2 {[%clk 0:02:42.6]} 26. Rf2 {[%clk 0:02:20.6]}
26... Rd4 {[%clk 0:02:36.7]} 27. Rfe2 {[%clk 0:02:14.2]} 27... Rxb4 {[%clk
0:02:32.7]} 28. a5 {[%clk 0:02:11.9]} 28... bxa5 {[%clk 0:02:26.6]} 29. Kf2
{[%clk 0:02:03.1]} 29... Re5 {[%clk 0:02:24.8]} 30. Kf3 {[%clk 0:02:00.6]} 30...
c5 {[%clk 0:02:23]} 31. Rd2 {[%clk 0:01:54.4]} 31... Kc7 {[%clk 0:02:21.5]} 32.
Red1 {[%clk 0:01:50.2]} 32... Rbxe4 {[%clk 0:02:08.3]} 33. Rd7+ {[%clk
0:01:48.2]} 33... Kc6 {[%clk 0:02:07.2]} 34. R1d6+ {[%clk 0:01:46.1]} 34... Kb5
{[%clk 0:02:05.8]} 35. Rxg7 {[%clk 0:01:41.4]} 35... Kc4 {[%clk 0:02:03.3]} 36.
Rxh7 {[%clk 0:01:35.7]} 36... f5 {[%clk 0:01:58.2]} 37. Ra6 {[%clk 0:01:24.6]}
37... Kb5 {[%clk 0:01:45.6]} 38. Rha7 {[%clk 0:01:21.7]} 38... Ra4 {[%clk
0:01:43.9]} 39. Rh6 {[%clk 0:01:15.5]} 39... Rd5 {[%clk 0:01:40]} 40. Rb7+
{[%clk 0:01:13.5]} 40... Kc4 {[%clk 0:01:37.9]} 41. Rh4+ {[%clk 0:01:06.3]}
41... Rd4 {[%clk 0:01:36.6]} 42. Rh8 {[%clk 0:01:03.3]} 42... Ra3+ {[%clk
0:01:33.4]} 43. Ke2 {[%clk 0:00:55.4]} 43... Re4+ {[%clk 0:01:31.1]} 44. Kd2
{[%clk 0:00:53.1]} 44... Rd3+ {[%clk 0:01:29]} 45. Kc1 {[%clk 0:00:49.9]} 45...
Re2 {[%clk 0:01:27.8]} 46. Rb2 {[%clk 0:00:37.1]} 46... Rxb2 {[%clk 0:01:23.9]}
47. Kxb2 {[%clk 0:00:35.8]} 47... Rd2+ {[%clk 0:01:22.9]} 48. Kc1 {[%clk
0:00:30.9]} 48... Rxg2 {[%clk 0:01:22.8]} 49. Rh4+ {[%clk 0:00:28.4]} 49... Kd5
{[%clk 0:01:20.1]} 50. Rh5 {[%clk 0:00:24.3]} 50... Ke4 {[%clk 0:01:18.6]} 51.
Rh4+ {[%clk 0:00:23.3]} 51... f4 {[%clk 0:01:17.3]} 52. Rh8 {[%clk 0:00:21.2]}
52... Ke3 {[%clk 0:01:14.7]} 53. h4 {[%clk 0:00:20.3]} 53... f3 {[%clk 0:01:13]}
54. Re8+ {[%clk 0:00:18.7]} 54... Kf2 {[%clk 0:01:11.6]} 55. h5 {[%clk 0:00:16]}
55... Rh2 {[%clk 0:01:10.3]} 56. Rh8 {[%clk 0:00:11.2]} 0-1